bitfinex/quotes_ETHUSD_20240612
["timestamp","ask_amount","ask_price","bid_price","bid_amount"]
[1718197828096,0.05470738,3646.9,3645.7,2.74292]
[1718197828291,2.74203,3647.0,3645.7,2.74292]
[1718197828292,2.74203,3647.0,3645.8,1.43344514]
[1718197828678,7.3894,3647.4,3645.4,0.4231598]
[1718197828985,2.74213,3646.8,3645.6,2.74301]
[1718197829301,2.74213,3646.8,3645.8,2.74281]
[1718197829459,2.74178,3647.3,3646.1,2.74262]
[1718197829665,0.05470738,3647.2,3646.2,1.43344514]
[1718197829864,2.74143,3647.8,3646.4,2.74238]
[1718197830107,0.05470738,3647.7,3646.8,2.74212]
[1718197830264,0.05470738,3647.7,3646.9,1.43344514]
[1718197830706,2.74205,3646.9,3645.6,3.352]
[1718197830919,0.05470738,3646.8,3645.8,2.74286]
[1718197831204,2.74205,3646.9,3645.8,4.17630514]
[1718197831205,0.05470738,3646.7,3645.8,4.17630514]
[1718197831795,0.55,3646.6,3645.8,4.17630514]
[1718197831979,0.05470738,3646.5,3645.8,1.43344514]
[1718197832159,0.55,3646.4,3645.3,2.7432]
[1718197832364,0.55,3646.4,3645.4,1.43344514]
[1718197832365,0.05470738,3646.3,3645.4,1.43344514]
[1718197832604,0.60470738,3646.2,3645.4,1.43344514]
[1718197832910,0.05470738,3646.2,3645.4,1.43344514]
[1718197833066,0.05470738,3646.2,3644.8,2.74357]
[1718197833067,0.55,3646.1,3644.8,2.74357]
[1718197833272,0.55,3646.1,3644.4,0.85264019]
[1718197833273,2.74304,3645.6,3644.4,0.85264019]
[1718197833477,0.60470738,3645.5,3644.5,1.43344514]
[1718197833919,2.74331,3645.3,3643.8,2.74432]
[1718197834095,0.60470738,3645.2,3643.9,1.43344514]
[1718197834811,0.60470738,3645.2,3644.4,2.74392]
[1718197835111,0.05470738,3645.1,3644.5,1.43344514]
[1718197835299,0.55,3645.0,3643.9,2.74427]
[1718197835506,0.55,3645.0,3644.0,1.43344514]
[1718197835507,0.05470738,3644.9,3644.0,1.43344514]
[1718197835686,0.55,3644.8,3644.0,1.43344514]
[1718197836006,0.05470738,3644.7,3644.0,1.43344514]
[1718197836413,0.55,3644.6,3644.0,1.43344514]
[1718197836583,0.05470738,3644.5,3644.0,1.43344514]
[1718197836983,0.05470738,3644.5,3643.6,0.274458]
[1718197836984,0.55,3644.4,3643.6,0.274458]
[1718197837188,0.05470738,3644.3,3643.7,1.43344514]
[1718197837389,0.55,3644.2,3643.7,1.60972426]
[1718197837999,0.55,3644.4,3643.7,1.60972426]
[1718197838180,0.05470738,3644.3,3643.7,1.60972426]
[1718197838380,0.55,3644.2,3643.7,1.60972426]
[1718197838889,0.60470738,3644.2,3643.7,1.43344514]
[1718197839221,0.05470738,3644.1,3643.6,2.74446]
[1718197839428,0.05470738,3644.1,3643.6,4.17790514]
[1718197839733,0.55,3644.0,3643.1,2.74486]
[1718197839947,0.55,3644.0,3642.3,3.42957274]
[1718197839948,7.16490738,3643.9,3642.5,2.74535]
[1718197840230,2.74487,3643.2,3642.0,3.352]
[1718197840397,0.05470738,3643.1,3642.1,0.0549138]
[1718197840607,0.05470738,3643.1,3641.6,0.05490714]
[1718197840807,3.0,3643.8,3641.0,14.15983634]
[1718197840808,2.7451,3642.9,3641.4,2.80108657]
[1718197841013,0.60470738,3642.8,3641.7,2.74595]
[1718197841213,0.60470738,3642.8,3642.0,2.74568]
[1718197841696,2.74532,3642.6,3640.6,1.098402]
[1718197841917,0.05470738,3642.5,3640.7,1.43344514]
[1718197842223,0.60470738,3642.5,3640.7,1.43344514]
[1718197842385,1.01172274,3642.4,3640.8,0.14334451]
[1718197842586,0.60470738,3642.3,3640.9,1.48836874]
[1718197842783,0.05470738,3642.2,3641.2,2.74632]
[1718197843042,0.05470738,3642.2,3640.8,0.14334451]
[1718197843043,0.55,3642.1,3641.5,2.74609]
[1718197843323,0.05470738,3642.0,3641.6,1.43344514]
[1718197843697,0.05470738,3642.0,3641.7,2.74596]
[1718197843924,0.55,3642.1,3641.7,4.59734565]
[1718197844130,0.05470738,3643.0,3642.3,2.74548]
[1718197844328,0.05470738,3643.0,3642.3,4.17892514]
[1718197844636,0.05470738,3643.5,3642.5,2.74531]
[1718197844840,0.05470738,3643.5,3642.7,2.74518]
[1718197846018,2.74337,3645.2,3642.7,2.74518]
[1718197846019,7.1736,3644.4,3643.4,2.74468]
[1718197846189,0.05470738,3644.3,3643.4,2.74468]
[1718197846393,0.05470738,3644.2,3643.4,4.17812514]
[1718197846730,0.05470738,3644.2,3643.7,2.74445]
[1718197847028,6.9856,3645.0,3643.7,2.74445]
[1718197847029,0.05470738,3644.9,3643.7,2.74445]
[1718197847245,0.70403074,3644.8,3643.7,2.74445]
[1718197847413,0.05470738,3644.7,3643.7,2.74445]
[1718197847788,0.05470738,3644.7,3644.0,2.74418]
[1718197848011,0.05470738,3644.7,3644.0,4.17762514]
[1718197848390,0.05470738,3644.9,3644.2,2.74402]
[1718197848602,0.05470738,3645.6,3644.2,4.17746514]
[1718197849705,2.74311,3645.5,3644.2,4.17746514]
[1718197849904,0.05470738,3645.4,3644.5,2.74385]
[1718197850102,0.05470738,3645.4,3644.6,4.17720514]
[1718197850503,0.05470738,3645.9,3644.6,4.17720514]
[1718197850713,2.74298,3645.7,3644.6,4.17720514]
[1718197851029,0.05470738,3645.6,3644.6,4.17720514]
[1718197851819,2.74319,3645.4,3644.2,2.74408]
[1718197851992,6.8518,3645.7,3642.9,2.745]
[1718197851993,2.74349,3645.0,3643.7,2.74441]
[1718197852202,2.74363,3644.8,3643.7,2.74441]
[1718197852407,2.7438,3644.6,3643.8,1.43344514]
[1718197852632,0.05470738,3644.5,3643.8,1.43344514]
[1718197852809,0.55,3644.4,3643.2,2.74481]
[1718197853003,0.05470738,3644.3,3643.3,1.43344514]
[1718197853204,0.60470738,3644.2,3643.3,1.43344514]
[1718197853404,0.05470738,3644.2,3643.3,1.43344514]
[1718197853633,0.55,3644.1,3643.3,1.43344514]
[1718197853806,0.05470738,3644.0,3643.4,2.74466]
[1718197854003,0.55,3643.9,3643.5,1.43344514]
[1718197854207,0.05470738,3643.8,3643.5,1.43344514]
[1718197854726,0.05470738,3644.4,3643.6,2.74453]
[1718197854913,0.05470738,3644.9,3644.0,2.74422]
[1718197855116,0.05470738,3644.9,3644.0,4.17766514]
[1718197856046,0.05470738,3644.9,3644.2,2.74407]
[1718197856349,0.55,3644.8,3644.2,2.74407]
[1718197856546,0.05470738,3645.2,3644.4,2.74386]
[1718197856751,0.05470738,3645.2,3644.5,1.43344514]
[1718197857041,0.33449712,3645.2,3644.4,2.74386]
[1718197857449,0.33449712,3645.2,3644.0,2.74422]
[1718197857621,0.33449712,3645.2,3644.1,1.43344514]
[1718197858362,3.29345,3645.1,3644.1,1.43344514]
[1718197858566,0.05470738,3645.0,3644.1,1.43344514]
[1718197858853,0.55,3644.9,3644.1,1.43344514]
[1718197859011,0.05470738,3644.8,3644.1,1.43344514]
[1718197859211,0.55,3644.7,3644.1,1.43344514]
[1718197859439,0.05470738,3644.6,3644.1,1.43344514]
[1718197860149,6.87980738,3644.6,3643.5,2.74456]
[1718197860454,2.74435,3643.9,3642.9,2.74503]
[1718197860664,2.74449,3643.7,3642.9,1.43344514]
[1718197860812,0.60470738,3643.6,3642.9,1.43344514]
[1718197863036,0.60470738,3643.6,3642.5,2.74533]
[1718197863239,2.79936738,3643.5,3642.6,1.43344514]
[1718197863445,0.55,3643.4,3642.6,1.43344514]
[1718197863657,0.05470738,3643.3,3642.6,1.43344514]
[1718197863842,0.55,3643.2,3642.6,1.43344514]
[1718197864039,0.05470738,3643.1,3642.6,1.43344514]
[1718197866420,0.55,3643.0,3642.6,1.43344514]
[1718197866623,0.05470738,3642.9,3642.6,1.43344514]
[1718197867048,0.05470738,3642.9,3642.6,1.41820751]
[1718197867243,0.05470738,3642.9,3641.4,10.7318]
[1718197867244,2.74532,3642.6,3641.6,2.74597]
[1718197867444,2.74532,3642.6,3641.7,1.43344514]
[1718197867445,1.62115012,3642.5,3641.7,1.43344514]
[1718197867652,0.60470738,3642.5,3641.7,1.43344514]
[1718197869243,2.74545,3642.4,3641.7,1.43344514]
[1718197869561,0.60470738,3642.3,3641.7,1.43344514]
[1718197869739,0.05470738,3642.2,3641.7,1.43344514]
[1718197869939,0.55,3642.1,3641.7,1.43344514]
[1718197870660,2.74456,3643.6,3642.0,1.43344514]
[1718197870824,2.74428,3644.0,3642.7,1.43344514]
[1718197871025,0.05470738,3643.9,3642.8,0.0548921]
[1718197871221,0.05470738,3643.9,3642.9,1.43344514]
[1718197871462,0.05470738,3643.9,3643.1,2.7449]
[1718197871644,0.05470738,3643.9,3643.2,1.43344514]
[1718197871852,9.86798,3644.4,3643.3,2.74476]
[1718197872027,0.05470738,3644.3,3643.4,1.43344514]
[1718197872226,0.05470738,3644.2,3643.4,1.43344514]
[1718197872729,2.74365,3644.8,3643.6,2.7445]
[1718197872929,2.74379,3644.6,3643.7,1.43344514]
[1718197873162,2.74394,3644.4,3643.7,1.43344514]
[1718197873364,0.05470738,3644.3,3643.7,1.43344514]
[1718197873837,2.79879738,3644.2,3643.2,2.74481]
[1718197874165,2.74424,3644.0,3643.3,1.43344514]
[1718197874367,0.05470738,3643.9,3643.3,1.43344514]
[1718197874680,0.55,3643.8,3643.3,1.43344514]
[1718197874969,0.05470738,3643.7,3643.3,1.43344514]
[1718197877465,2.74424,3644.0,3643.3,1.43344514]
[1718197877638,2.74424,3644.0,3643.3,1.85127765]
[1718197877843,0.55,3643.9,3643.3,1.85127765]
[1718197878028,0.60470738,3643.9,3643.3,1.85127765]
[1718197878366,0.60470738,3643.9,3643.3,1.43344514]
[1718197878528,2.74444,3643.8,3642.7,2.74521]
[1718197878725,2.7446,3643.6,3642.8,1.43344514]
[1718197878963,0.60470738,3643.5,3642.8,1.43344514]
[1718197880832,0.05470738,3643.4,3641.9,2.74577]
[1718197881067,0.05470738,3643.4,3641.3,7.4117]
[1718197881068,2.74517,3642.8,3642.0,1.43344514]
[1718197881371,2.74531,3642.6,3642.0,1.43344514]
[1718197881674,0.05470738,3642.5,3642.0,1.43344514]
[1718197881875,0.55,3642.4,3642.0,1.43344514]
[1718197882246,0.05470738,3642.3,3642.0,1.43344514]
[1718197882752,2.74474,3643.4,3642.1,2.94390717]
[1718197882952,0.60470738,3643.3,3642.3,2.74545]
[1718197883155,0.60470738,3643.3,3642.4,1.48834815]
[1718197883862,2.74444,3643.8,3642.4,1.48834815]
[1718197884090,0.05470738,3643.7,3642.5,1.58227996]
[1718197884249,0.05470738,3643.7,3642.8,2.74511]
[1718197884450,0.05470738,3643.7,3642.9,1.43344514]
[1718197885493,0.55,3643.6,3642.9,1.43344514]
[1718197885791,2.74412,3644.2,3643.0,0.05489663]
[1718197886009,0.05470738,3644.1,3643.1,1.58227932]
[1718197886179,0.05470738,3644.1,3643.2,0.05488894]
[1718197886374,0.05470738,3644.1,3643.3,1.43344514]
[1718197886970,2.74424,3644.0,3643.3,1.43344514]
[1718197887290,0.05470738,3643.9,3643.3,1.43344514]
[1718197888882,2.74489,3643.2,3641.9,2.7458]
[1718197889072,2.74489,3643.2,3642.3,1.48834873]
[1718197889407,2.74489,3643.2,3642.4,2.74542]
[1718197889636,2.74489,3643.2,3642.5,1.48834546]
[1718197889810,2.74489,3643.2,3642.6,0.42337655]
[1718197889973,2.74458,3643.6,3642.7,1.43344514]
[1718197890174,0.55,3643.5,3642.8,0.05489633]
[1718197890373,0.55,3643.5,3642.9,1.43344514]
[1718197890883,2.74428,3644.0,3643.0,0.05489469]
[1718197891085,2.74428,3644.0,3642.6,2.74524]
[1718197891086,0.05470738,3643.9,3642.6,2.74524]
[1718197891285,0.05470738,3643.9,3642.7,1.43344514]
[1718197891286,0.55,3643.8,3642.7,1.43344514]
[1718197891586,6.8046,3643.6,3642.7,1.43344514]
[1718197891801,0.60470738,3643.5,3642.7,1.43344514]
[1718197892003,3.34937738,3643.5,3642.7,1.43344514]
[1718197892191,2.74478,3643.3,3642.7,1.43344514]
[1718197892388,0.60470738,3643.2,3642.7,1.43344514]
[1718197892775,2.74492,3643.1,3641.8,2.74584]
[1718197892982,0.60470738,3643.0,3641.9,1.43344514]
[1718197893310,2.74509,3642.9,3641.9,1.43344514]
[1718197893541,0.60470738,3642.8,3641.9,1.43344514]
[1718197893746,0.05470738,3642.7,3641.9,1.43344514]
[1718197893910,0.55,3642.6,3641.9,1.43344514]
[1718197894111,2.74576,3642.0,3640.8,2.74658]
[1718197894309,2.74576,3642.0,3641.0,2.74648]
[1718197894625,2.74576,3642.0,3641.2,2.74634]
[1718197894826,2.74544,3642.4,3641.3,1.43344514]
[1718197895018,0.60470738,3642.3,3641.3,1.43344514]
[1718197895224,0.05470738,3642.2,3641.3,1.43344514]
[1718197895420,0.55,3642.1,3641.3,1.43344514]
[1718197895650,0.55,3642.1,3641.3,2.15372291]
[1718197895824,0.05470738,3642.0,3641.3,2.15372291]
[1718197896155,0.05470738,3642.0,3641.5,2.74611]
[1718197896338,2.74544,3642.5,3641.5,2.74611]
[1718197896339,0.05470738,3642.4,3641.6,1.43344514]
[1718197896538,0.60470738,3642.4,3641.6,1.43344514]
[1718197896848,2.74564,3642.2,3641.1,3.02299251]
[1718197897161,0.60470738,3642.1,3641.2,1.43344514]
[1718197897673,0.60470738,3642.1,3641.2,4.17975514]
[1718197898030,0.60470738,3642.1,3641.2,4.90002991]
[1718197898352,0.55,3642.1,3641.2,4.90002991]
[1718197899560,2.74532,3642.6,3641.6,2.746]
[1718197899763,0.55,3642.5,3641.7,1.43344514]
[1718197900060,0.879532,3642.5,3641.7,1.43344514]
[1718197900563,0.55,3642.5,3641.7,4.03844514]
[1718197900865,2.74502,3643.0,3641.9,2.74581]
[1718197901071,0.05470738,3642.9,3642.0,1.43344514]
[1718197902668,0.55,3642.8,3642.0,1.43344514]
[1718197902828,0.05470738,3642.7,3642.0,1.43344514]
[1718197903030,0.55,3642.6,3642.0,1.43344514]
[1718197903258,0.05470738,3642.5,3642.0,1.43344514]
[1718197903845,0.05470738,3642.6,3642.0,1.43344514]
[1718197904265,0.05470738,3642.9,3642.0,1.43344514]
[1718197904479,0.55,3642.8,3642.0,1.43344514]
[1718197904711,0.05470738,3642.7,3642.0,1.43344514]
[1718197904836,0.05470738,3642.7,3642.1,1.43344514]
[1718197912273,2.79995738,3642.7,3641.5,5.35109]
[1718197912477,2.79995738,3642.7,3641.6,1.43344514]
[1718197912478,0.88499574,3642.6,3641.6,1.43344514]
[1718197912668,0.05470738,3642.5,3641.6,1.43344514]
[1718197912842,2.74546,3642.4,3641.6,1.43344514]
[1718197913038,0.60470738,3642.3,3641.6,1.43344514]
[1718197914363,0.60470738,3642.3,3641.7,1.43344514]
[1718197918349,0.93972412,3642.3,3641.7,1.43344514]
[1718197918891,0.60470738,3642.3,3641.7,1.43344514]
[1718197919464,2.7452,3642.8,3641.8,2.74588]
[1718197919788,3.60470738,3642.7,3641.9,1.43344514]
[1718197919993,2.74532,3642.6,3641.9,1.43344514]
[1718197920294,0.60470738,3642.5,3641.9,1.43344514]
[1718197920862,0.05470738,3642.5,3641.9,1.43344514]
[1718197921052,2.74532,3642.6,3641.9,1.85137765]
[1718197921452,7.4648,3643.2,3642.0,2.65990954]
[1718197921658,0.05470738,3643.1,3642.1,1.43344514]
[1718197922172,7.3367,3643.0,3640.5,0.80998116]
[1718197922364,7.3367,3643.0,3640.9,1.43344514]
[1718197922365,0.05470738,3642.9,3640.9,1.43344514]
[1718197922560,0.88248525,3642.8,3640.9,1.43344514]
[1718197922782,0.05470738,3642.7,3640.9,1.43344514]
[1718197923094,2.74592,3641.8,3640.9,4.17998514]
[1718197923304,0.05470738,3641.7,3640.9,4.17998514]
[1718197923457,0.55,3641.6,3640.9,4.17998514]
[1718197923658,0.05470738,3641.5,3640.9,4.17998514]
[1718197923858,0.60470738,3641.6,3640.9,4.59798365]
[1718197924293,0.05470738,3641.6,3640.9,4.59798365]
[1718197924597,0.05470738,3641.7,3640.9,4.59798365]
[1718197924798,0.05470738,3641.7,3640.9,4.17998514]
[1718197926691,2.74628,3641.3,3640.5,2.7468]
[1718197926860,0.05470738,3641.2,3640.6,1.43344514]
[1718197927057,2.74645,3641.1,3640.6,1.43344514]
[1718197927287,0.05470738,3641.0,3640.6,1.43344514]
[1718197927906,2.74618,3641.5,3640.6,1.43344514]
[1718197928189,0.55,3641.4,3640.6,1.43344514]
[1718197928427,0.05470738,3641.3,3640.6,1.43344514]
[1718197930493,0.05470738,3641.3,3640.6,3.38844514]
[1718197931289,0.55,3641.2,3640.6,3.38844514]
[1718197931489,0.60470738,3641.2,3640.6,1.43344514]
[1718197931726,0.05470738,3641.4,3641.0,1.955]
[1718197932031,6.9685,3642.2,3641.1,1.48837162]
[1718197932032,2.74588,3641.9,3641.1,1.48837162]
[1718197932197,2.74588,3641.9,3641.4,1.955]
[1718197932591,2.74556,3642.3,3641.4,3.38844514]
[1718197932792,7.1009,3642.7,3641.5,4.17952514]
[1718197932793,0.32926338,3642.2,3641.5,4.17952514]
[1718197932993,0.05470738,3642.6,3641.5,1.43344514]
[1718197933196,2.74554,3642.3,3641.3,2.74626]
[1718197933434,2.74554,3642.3,3641.4,1.43344514]
[1718197933435,0.05470738,3642.2,3641.4,1.43344514]
[1718197934596,0.55,3642.1,3641.4,1.43344514]
[1718197934807,0.05470738,3642.0,3641.4,1.43344514]
[1718197939330,3.13548212,3642.0,3640.9,2.7465]
[1718197939550,0.55,3641.9,3641.0,1.43344514]
[1718197939696,2.74602,3641.7,3640.6,1.955]
[1718197939901,0.60470738,3641.6,3640.8,2.74662]
[1718197940142,0.60470738,3641.6,3640.9,1.43344514]
[1718197940404,0.60470738,3641.6,3640.9,3.38844514]
[1718197940909,3.0,3642.6,3641.0,2.80139564]
[1718197940910,2.74573,3642.1,3641.0,2.80139564]
[1718197941256,0.05470738,3642.0,3641.1,1.43344514]
[1718197941403,0.55,3641.9,3641.1,1.43344514]
[1718197941738,0.05470738,3641.8,3641.1,1.43344514]
[1718197942238,0.60470738,3641.7,3640.9,1.955]
[1718197942398,0.05470738,3641.7,3640.9,3.38844514]
[1718197942607,0.55,3641.6,3640.9,3.38844514]
[1718197942925,0.05470738,3641.5,3640.9,3.38844514]
[1718197943095,0.55,3641.4,3640.9,3.38844514]
[1718197943304,2.80097738,3641.3,3640.6,2.74672]
[1718197943503,0.55,3641.2,3640.6,1.43344514]
[1718197943725,0.55,3641.2,3640.3,1.955]
[1718197943726,0.05470738,3641.1,3640.3,1.955]
[1718197943929,0.55,3641.0,3640.4,1.43344514]
[1718197944119,0.05470738,3640.9,3640.4,1.43344514]
[1718197945200,0.55,3641.0,3640.4,2.04699165]
[1718197945401,2.74598,3641.7,3640.7,1.955]
[1718197945647,2.74614,3641.5,3640.7,1.955]
[1718197945804,0.60470738,3641.4,3640.7,1.955]
[1718197946004,0.60470738,3641.4,3640.8,1.43344514]
[1718197946204,2.74614,3641.5,3640.8,2.04696565]
[1718197946439,2.74588,3641.9,3641.1,1.955]
[1718197946746,2.74588,3641.9,3641.2,1.43344514]
[1718197946898,0.05470738,3641.8,3641.2,1.43344514]
[1718197947312,0.05470738,3641.8,3640.9,2.74656]
[1718197947640,0.05470738,3641.8,3641.0,1.43344514]
[1718197947843,0.05470738,3641.8,3640.9,2.74656]
[1718197947844,2.74607,3641.6,3640.9,2.74656]
[1718197948069,0.05470738,3641.5,3640.9,4.18000514]
[1718197948905,2.74621,3641.4,3640.5,2.74683]
[1718197949135,0.05470738,3641.3,3640.6,1.43344514]
[1718197951216,2.74621,3641.4,3640.8,1.955]
[1718197951545,2.74621,3641.4,3640.8,3.38844514]
[1718197951847,2.74592,3641.8,3641.2,1.955]
[1718197952006,0.05470738,3641.7,3641.2,1.955]
[1718197952937,0.05470738,3641.7,3640.9,1.43344514]
[1718197953265,2.74614,3641.5,3640.8,1.955]
[1718197953548,0.38979212,3641.4,3640.8,3.38844514]
[1718197954348,0.05470738,3641.4,3640.8,3.38844514]
[1718197958961,0.05470738,3641.4,3640.8,1.43344514]
[1718197959161,0.05470738,3641.4,3640.8,3.38844514]
[1718197959885,0.05470738,3641.4,3640.8,1.43344514]
[1718197960334,2.74627,3641.3,3640.4,2.74693]
[1718197960531,0.05470738,3641.2,3640.5,3.38844514]
[1718197962336,3.02636774,3641.3,3640.6,2.80170344]
[1718197962531,2.74599,3641.7,3640.9,1.955]
[1718197962801,2.74565,3642.2,3641.3,1.955]
[1718197962953,0.32927238,3642.1,3641.3,3.38844514]
[1718197964161,0.32927238,3642.1,3641.3,6.13469514]
[1718197965485,0.32927238,3642.1,3641.5,2.74606]
[1718197967251,7.1375,3642.5,3641.7,2.74596]
[1718197967493,7.1375,3642.5,3641.3,2.74619]
[1718197967494,2.74553,3642.3,3641.3,2.74619]
[1718197967641,0.60470738,3642.2,3641.4,1.43344514]
[1718197967839,2.74568,3642.1,3641.3,2.74619]
[1718197968063,0.60470738,3642.0,3641.0,2.74649]
[1718197968238,3.08087874,3641.9,3641.1,1.43344514]
[1718197968439,3.08087874,3641.9,3640.6,2.74672]
[1718197968440,2.74603,3641.7,3640.6,2.74672]
[1718197968721,0.05470738,3641.6,3640.7,3.38844514]
[1718197969176,0.05470738,3641.6,3640.7,1.43344514]
[1718197969379,2.74638,3641.2,3640.2,2.74707]
[1718197969539,2.74638,3641.2,3640.0,1.955]
[1718197969540,3.806598,3641.2,3640.4,4.7019]
[1718197969872,7.8558,3641.5,3640.5,1.48837686]
[1718197970082,0.05470738,3641.4,3640.5,1.48837686]
[1718197970289,2.74609,3641.6,3641.2,1.955]
[1718197970580,9.61999,3642.0,3641.2,1.955]
[1718197970788,1.56670638,3641.9,3641.2,1.955]
[1718197971095,1.56670638,3641.9,3641.2,3.38844514]
[1718197971096,0.55,3641.9,3641.2,3.38844514]
[1718197971241,0.55,3641.9,3641.2,1.43344514]
[1718197971438,0.60470738,3641.9,3641.2,3.38844514]
[1718197974985,0.60470738,3641.9,3641.2,1.43344514]
[1718197978390,2.74591,3641.8,3640.9,2.74654]
[1718197978593,0.60470738,3641.9,3640.9,4.17998514]
[1718197978594,2.74604,3641.6,3640.9,4.17998514]
[1718197978771,0.05470738,3641.5,3640.9,4.17998514]
[1718197979492,2.74604,3641.6,3640.9,4.17998514]
[1718197979493,2.74604,3641.6,3641.0,1.48837152]
[1718197979856,2.74604,3641.6,3641.0,1.43344514]
[1718197980356,0.55,3641.9,3641.0,1.43344514]
[1718197980585,0.05470738,3641.8,3641.0,1.43344514]
[1718197980785,0.05470738,3641.8,3641.1,0.05492273]
[1718197980975,0.05470738,3641.8,3641.2,1.43344514]
[1718197981762,0.05470738,3641.8,3641.2,3.38844514]
[1718197982059,2.7458,3642.0,3641.2,3.38844514]
[1718197982700,1.43807994,3642.8,3641.6,1.955]
[1718197982885,1.43807994,3642.8,3642.0,1.955]
[1718197982886,0.05470738,3642.7,3642.0,1.955]
[1718197983973,2.79991738,3642.7,3642.0,1.955]
[1718197984405,0.55,3642.6,3642.0,1.955]
[1718197984588,0.05470738,3642.5,3642.0,4.955]
[1718197984790,2.74566,3642.2,3642.0,3.0]
[1718197985103,0.05470738,3642.1,3642.0,3.0]
[1718197985469,7.96760738,3642.1,3642.0,3.0]
[1718197985670,10.96760738,3642.1,3642.0,3.0]
[1718197985870,12.33893412,3642.1,3642.0,3.0]
[1718197987500,12.28422674,3642.1,3642.0,3.0]
[1718197989686,21.25421174,3642.1,3642.0,3.0]
[1718197990073,12.28422674,3642.1,3642.0,3.0]
[1718197990566,13.7225788,3642.1,3642.0,3.0]
[1718197991570,12.28422674,3642.1,3642.0,3.0]
[1718197992407,13.7225788,3642.1,3642.0,3.0]
[1718197993667,12.28422674,3642.1,3642.0,3.0]
[1718197994999,13.72259348,3642.1,3642.0,3.0]
[1718197995523,12.28422674,3642.1,3642.0,3.0]
[1718197995666,2.74598,3641.7,3640.7,1.955]
[1718197995875,0.60470738,3641.6,3640.3,2.74697]
[1718197996078,0.60470738,3641.6,3640.4,1.43344514]
[1718197996614,2.74643,3641.1,3640.4,1.43344514]
[1718197996800,0.05470738,3641.0,3640.4,1.43344514]
[1718197998474,2.74657,3640.9,3640.2,1.955]
[1718197998815,0.05470738,3640.8,3640.2,4.53507214]
[1718197999022,2.74657,3640.9,3640.6,1.955]
[1718197999312,2.74633,3641.3,3640.6,1.955]
[1718197999482,0.05470738,3641.2,3640.6,1.955]
[1718197999675,0.05470738,3641.2,3640.7,0.1955]
[1718198001096,2.74643,3641.1,3640.4,2.74694]
[1718198001275,0.05470738,3641.0,3640.4,2.74694]
[1718198002311,0.05470738,3641.0,3640.2,3.101627]
[1718198002508,0.05470738,3641.0,3640.2,4.53507214]
[1718198002713,0.05470738,3641.0,3640.3,1.40462721]
[1718198009808,2.74658,3640.9,3640.0,9.5112]
[1718198010001,0.05470738,3640.8,3640.1,1.43344514]
[1718198011317,2.74658,3640.9,3640.2,0.05493705]
[1718198011522,2.74658,3640.9,3640.2,1.48838219]
[1718198011817,2.74658,3640.9,3640.3,1.35039308]
[1718198012382,2.74658,3640.9,3640.3,1.29545822]
[1718198013629,2.74631,3641.3,3640.3,2.72890336]
[1718198013918,0.05470738,3641.2,3640.3,2.72890336]
[1718198015419,0.05470738,3641.2,3640.4,1.955]
[1718198015606,2.74631,3641.3,3640.5,4.23524969]
[1718198015919,2.74631,3641.3,3640.8,1.955]
[1718198017101,2.74631,3641.3,3640.5,2.74687]
[1718198017102,0.05470738,3641.2,3640.5,2.74687]
[1718198017305,2.74645,3641.1,3640.1,2.74714]
[1718198017625,0.05470738,3641.0,3640.2,1.43344514]
[1718198019390,0.05470738,3641.0,3640.3,1.955]
[1718198019629,0.05470738,3641.0,3640.4,0.68119851]
[1718198020126,2.7462,3641.4,3640.5,1.43344514]
[1718198020306,3.05470738,3641.3,3640.5,1.43344514]
[1718198020502,0.05470738,3641.2,3640.5,1.43344514]
[1718198021491,0.05470738,3641.2,3640.4,3.42813851]
[1718198021691,2.74644,3641.1,3640.3,1.955]
[1718198021890,0.05470738,3641.0,3640.3,1.955]
[1718198022924,0.05470738,3641.0,3640.1,0.6764]
[1718198023138,0.05470738,3641.0,3640.2,1.48838056]
[1718198025332,0.05470738,3641.0,3640.2,1.43344514]
[1718198026439,2.7466,3640.9,3640.1,0.6764]
[1718198026641,2.7466,3640.9,3640.1,2.10984514]
[1718198027145,0.05470738,3640.8,3640.1,2.10984514]
[1718198029396,0.05470738,3640.8,3640.1,1.43344514]
[1718198030018,2.7471,3640.2,3639.2,2.74783]
[1718198030197,2.7471,3640.2,3639.3,1.43344514]
[1718198030198,0.05470738,3640.1,3639.3,1.43344514]
[1718198030910,0.05470738,3640.1,3639.3,2.04707265]
[1718198031211,0.05470738,3640.0,3639.3,0.61362751]
[1718198031453,2.74691,3640.5,3639.4,8.46088679]
[1718198031663,2.74691,3640.5,3639.4,8.40594514]
[1718198032325,0.05470738,3640.4,3639.4,11.15363514]
[1718198032634,2.74759,3639.6,3638.9,1.955]
[1718198032840,2.74759,3639.6,3639.0,1.4883964]
[1718198033041,2.74759,3639.6,3639.1,0.34433964]
[1718198033248,2.74759,3639.6,3639.2,1.48839642]
[1718198034556,2.74759,3639.6,3639.2,1.43344514]
[1718198035620,2.74759,3639.6,3638.9,1.955]
[1718198035621,0.05470738,3639.5,3638.9,1.955]
[1718198036142,0.05470738,3639.5,3638.7,2.74817]
[1718198036304,2.74759,3639.6,3639.0,1.955]
[1718198037653,5.74691,3640.5,3639.4,1.955]
[1718198037802,3.05470738,3640.4,3639.5,1.43344514]
[1718198038230,2.74705,3640.3,3639.5,1.43344514]
[1718198038415,0.05470738,3640.2,3639.5,1.43344514]
[1718198038617,0.05470738,3640.2,3639.5,1.77228965]
[1718198039235,2.74705,3640.3,3639.5,1.77228965]
[1718198040423,2.74705,3640.3,3639.4,1.955]
[1718198040424,2.74722,3640.1,3639.4,1.955]
[1718198040730,2.74722,3640.1,3639.4,3.38844514]
[1718198041142,2.74722,3640.1,3639.5,1.48839346]
[1718198041661,8.22282783,3641.3,3639.5,1.48839346]
[1718198041829,2.74683,3640.6,3639.6,2.10383935]
[1718198042037,2.74703,3640.3,3639.7,1.43344514]
[1718198042359,2.74723,3640.1,3639.6,0.14883935]
[1718198042669,2.74723,3640.1,3639.6,1.43344514]
[1718198044620,2.74723,3640.1,3639.7,1.43344514]
[1718198044865,2.74678,3640.7,3639.9,1.955]
[1718198045031,2.74678,3640.7,3640.0,1.43344514]
[1718198045426,6.7845,3641.3,3640.0,1.43344514]
[1718198045427,2.74701,3640.4,3640.0,1.43344514]
[1718198045834,2.74716,3640.2,3639.2,2.74779]
[1718198046046,2.74716,3640.2,3639.3,4.34901414]